Cogmind - Beta 15 @@@ ROGUE MODE // 2025.09.13 @ 22:32:10 Player: TapeIsSticky Result: Self-destructed Performance ------------- Evolutions (4) 2000 Regions Visited (7) 1400 Robots Destroyed (103) 515 Value Destroyed (2948) 2948 Prototype IDs (18) 360 Alien Tech Used (0) 0 Bonus (928) 928 TOTAL SCORE: 8151 Bonus ------- High Alert Combat Kills 64 Follower Combat Kills 564 Registered with UFD 300 Cogmind --------- Core Integrity 702/850 Matter 242/300 Energy 370/370 System Corruption 1% Temperature Cool (0) Movement Rolling (170) Ox10 Location -6/Cetus Parts ------- > --- POWER (2) -------- Angular Momentum Engine Light Antimatter Reactor > --- PROPULSION (4) --- Armored Treads Armored Treads Improved Medium Treads Overtuned Scrapsphere > --- UTILITY (6) ------ Scrap Suit High-capacity Storage Unit Advanced Targeting Computer Improved Light Armor Plating > --- WEAPON (3) ------- Overtuned Barrage Gun Overtuned Barrage Gun Heavy Machine Gun > --- INVENTORY (20) --- Light Nuclear Core Light Treads Improved Treads Armored Treads Improved Medium Treads Improved Medium Treads Huge Storage Unit High-capacity Matter Pod (200) Gun Armor A0-MCA's Component Scanner High-powered Tractor Beam Proton Cannon High-powered Shotgun Coil Gun Heavy Machine Gun Gauss Cannon Improved Proton Missile Launcher CPS Tube (2) Botcube Peak State ------------ > --- POWER ------------ Angular Momentum Engine Light Antimatter Reactor > --- PROPULSION ------- Armored Treads Armored Treads Improved Medium Treads Overtuned Scrapsphere > --- UTILITY ---------- Scrap Suit High-capacity Storage Unit IFF Parser Advanced Targeting Computer Improved Light Armor Plating > --- WEAPON ----------- Overtuned Barrage Gun Overtuned Barrage Gun Heavy Machine Gun > --- INVENTORY -------- Light Nuclear Core Light Treads Improved Treads Armored Treads Improved Medium Treads Improved Medium Treads Huge Storage Unit High-capacity Matter Pod Gun Armor A0-MCA's Component Scanner High-powered Tractor Beam High-powered Shotgun Coil Gun Heavy Machine Gun Gauss Cannon Improved Proton Missile Launcher CPS Tube Botcube [Rating: 64] Favorites ----------- Power Improved Ion Engine Engine Improved Ion Engine Power Core Micro Nuclear Core Reactor Light Antimatter Reactor Propulsion Light Treads Treads Light Treads Wheel Overtuned Scrapsphere Utility High-capacity Storage Unit Device IFF Parser Storage High-capacity Storage Unit Processor Advanced Targeting Computer Hackware Authchip [Storage] Protection Makeshift Light Armor Plating Weapon Subdweller Laser Energy Gun Subdweller Laser Energy Cannon Subdweller Beam Cannon Ballistic Gun Barrage Gun Ballistic Cannon Battle Cannon Launcher Subdweller Shrapnel Launcher Build | -11 -10 -10 -9 -9 -6 -6 -6 ------- Run | Yrd Mat Sub Rec Scr Fac Ext Cet Slots Evolved 8 | . . . . . 8 . . Power 1 | . . . . . 1 . . Propulsion 2 | . . . . . 2 . . Utility 4 | . . . . . 4 . . Weapon 1 | . . . . . 1 . . Parts Attached 80 | 7 4 18 4 6 13 28 . Power 12 | 1 1 1 1 1 2 5 . Engine 10 | 1 1 1 1 1 1 4 . Core 1 | . . . . . 1 . . Reactor 1 | . . . . . . 1 . Propulsion 20 | 2 . 3 1 1 1 12 . Treads 18 | 2 . 2 1 1 1 11 . Leg . | . . . . . . . . Wheel 2 | . . 1 . . . 1 . Hover . | . . . . . . . . Flight . | . . . . . . . . Utility 21 | 2 2 3 . 2 6 6 . Device 7 | 1 . 1 . 1 1 3 . Storage 4 | 1 2 . . . . 1 . Processor 3 | . . . . . 3 . . Hackware 1 | . . . . 1 . . . Protection 6 | . . 2 . . 2 2 . Artifact . | . . . . . . . . Weapon 27 | 2 1 11 2 2 4 5 . Energy Gun 3 | 1 . 2 . . . . . Energy Cannon 2 | . . 2 . . . . . Ballistic Gun 15 | 1 1 3 1 2 3 4 . Ballistic Cannon 3 | . . 1 1 . 1 . . Launcher 4 | . . 3 . . . 1 . Special Weapon . | . . . . . . . . Impact Weapon . | . . . . . . . . Slashing Weapon . | . . . . . . . . Piercing Weapon . | . . . . . . . . Special Melee Weapon . | . . . . . . . . Unidentified Prototypes . | . . . . . . . . Corrupted Parts 2 | . . 1 . 1 . . . System Corruption 8 | . . 6 . 2 . . . Parts Lost 11 | . 1 2 . 1 2 5 . Power 5 | . . . . 1 1 3 . Propulsion 3 | . . 2 . . . 1 . Utility 2 | . 1 . . . . 1 . Weapon 1 | . . . . . 1 . . Highest Loss Streak 2 | . 1 1 . 1 2 2 . To Critical Strikes 1 | . . 1 . . . . . Average Backups 13 | 2 9 10 18 15 14 18 . Power . | . 1 . 2 . . 1 . Propulsion 2 | . 2 2 2 3 4 3 . Utility 3 | . 1 1 4 5 4 5 . Weapon 6 | . 4 6 9 5 4 6 . Tool/Special . | . . . . . . . . Unused Backups 32 | . 2 10 3 6 . 2 9 Power 4 | . . 1 . 2 . . 1 Propulsion 9 | . 1 3 . 1 . 1 3 Utility 9 | . 1 1 1 1 . 1 4 Weapon 9 | . . 5 2 2 . . . Tool/Special 1 | . . . . . . . 1 Average Slot Usage (%) 85 | . 91 86 99 70 86 96 . Engine 11 | . 14 13 14 9 5 10 . Treads 26 | . 27 26 28 28 25 23 . Device 1 | . 1 . . . 4 8 . Storage 10 | . 18 6 14 14 6 6 . Processor 1 | . . . . . 10 13 . Protection 8 | . . 7 14 12 5 6 . Energy Gun 6 | . 14 12 3 . . . . Energy Cannon 2 | . . 4 3 . . . . Ballistic Gun 8 | . 14 5 9 6 17 15 . Ballistic Cannon 3 | . . 4 9 . 1 3 . Peak Build Rating 64 | 7 9 16 17 23 49 64 . Average Rating 17 | 6 7 11 16 13 40 53 . On Entrance 22 | . 7 9 16 13 22 49 60 Naked Turns . | . . . . . . . . Heaviest Build 88 | 14 68 59 63 59 77 88 . Greatest Support 88 | 40 40 40 40 40 85 88 . Greatest Overweight (x) 10 | . 1 3 1 1 . 10 . Average Overweight (x) 1 | . . . 1 1 . 3 . Largest Inventory Capacity 25 | 8 20 20 20 20 20 25 . Average Capacity 16 | 7 13 12 20 20 20 20 . Most Carried 20 | 3 16 20 20 20 20 20 . Average Carried 14 | 2 9 10 19 16 16 19 . Final Capacity 20 | 8 20 20 20 20 20 20 20 Final Carried 20 | 3 16 20 18 18 20 19 19 Class Distribution -------------------- 71% | Mutant 10% | Scavenger-Mutant 3% | Commander-Gunner 3% | Subdweller-Mutant Dominant Class ---------------- Mutant | -10/Materials Mutant | -10/Subcaves Scavenger-Mutant | -9/Recycling Mutant | -9/Scraptown Skirmisher | -6/Factory Commander-Gunner | -6/Extension Commander-Gunner | -6/Cetus Resources | -11 -10 -10 -9 -9 -6 -6 -6 ----------- Run | Yrd Mat Sub Rec Scr Fac Ext Cet Matter Collected 3890 | 296 409 1075 143 315 306 1346 . Remotely . | . . . . . . . . Salvage Created 3755 | 249 426 845 259 . 354 1622 . Parts 244 | 23 35 64 18 . 20 84 . Haulers Intercepted 2 | . 2 . . . . . . Recyclers Shooed 4 | . . . 2 . . 2 . Parts Field Recycled . | . . . . . . . . Retrieved Matter . | . . . . . . . . Parts Self-Destructed 27 | . . 27 . . . . . Prevented . | . . . . . . . . Kills | -11 -10 -10 -9 -9 -6 -6 -6 ------- Run | Yrd Mat Sub Rec Scr Fac Ext Cet Combat Hostiles Destroyed 69 | . 9 27 4 . 5 24 . Guns 46 | . 9 17 3 . 3 14 . Cannons 15 | . . 8 1 . 2 4 . AOE 8 | . . 2 . . . 6 . Classes Destroyed 15 | 3 4 2 1 . 1 4 . Worker 4 | 1 2 . . . . 1 . Builder 1 | . . . . . . 1 . Tunneler 12 | 9 1 . . . 1 1 . Hauler 2 | . 2 . . . . . . Recycler 5 | 1 . . 1 . 2 1 . Turret 2 | . . 2 . . . . . Watcher 7 | . 3 . . . 1 3 . Swarmer 21 | . 6 7 . . 4 4 . Grunt 15 | . 3 3 . . . 9 . Duelist 1 | . . . . . . 1 . Sentry 11 | . . . 4 . . 7 . Specialist 1 | . . . . . . 1 . Hunter 2 | . . . . . . 2 . Programmer 1 | . . . . . 1 . . Subdweller 17 | . . 17 . . . . . Butcher 1 | . . . . . . 1 . Best Kill Streak 8 | 5 8 3 2 . 6 7 . Combat Bots Only 6 | . 3 3 1 . 4 6 . Max Kills in Single Turn 3 | 1 1 2 1 . 1 3 . Gunslinging 1 | . . 1 . . . . . Exploded 2 | . . 1 . . . 2 . Melee . | . . . . . . . . Uniques/NPCs Destroyed . | . . . . . . . . Combat | -11 -10 -10 -9 -9 -6 -6 -6 -------- Run | Yrd Mat Sub Rec Scr Fac Ext Cet Hostile Shots Fired 427 | . 43 115 24 . 25 220 . Missed 129 | . 14 39 7 . 4 65 . Hits 298 | . 29 76 17 . 21 155 . Melee 1 | . . . . . . 1 . Projectile 297 | . 29 76 17 . 21 154 . AOE 2 | . . 2 . . . . . Critical Strikes 3 | . . 2 . . . 1 . Damage Taken 4043 | . 305 1342 247 51 436 1662 . Core 307 | . 48 53 58 . 96 52 . Absorbed by Shields . | . . . . . . . . Regen/Repaired (Parts) 145 | . 67 . . . . 78 . Core Remaining (%) 68 | 100 . . . 36 . . . Volleys Fired 327 | 28 53 130 14 . 31 71 . Largest 3 | 2 2 2 2 . 3 3 . Hottest 140 | 70 70 93 140 . 98 98 . Shots Fired 685 | 56 103 225 33 . 63 205 . Gun 504 | 56 103 111 18 . 41 175 . Cannon 159 | . . 97 15 . 22 25 . Launcher 22 | . . 17 . . . 5 . Special . | . . . . . . . . Kinetic 463 | 28 53 96 22 . 63 201 . Thermal 204 | 28 50 115 11 . . . . Explosive . | . . . . . . . . Electromagnetic 18 | . . 14 . . . 4 . Robot Hit Streak 16 | 11 6 13 9 . 6 16 . Robot Miss Streak 6 | 2 6 2 4 . 3 4 . Penetration Max . | . . . . . . . . Secondary Targets 6 | . 2 1 . . . 3 . Max Gunslinging Chain 1 | . 1 1 . . . 1 . Shots Hit Robots 357 | 37 54 84 17 . 30 135 . Core Hits 181 | 14 26 50 7 . 13 71 . Critical Kills . | . . . . . . . . Critical Parts Destroyed 5 | . . 2 . . . 3 . Critical Strikes 15 | 2 1 5 1 . . 6 . Burn 3 | 2 1 . . . . . . Destroy 7 | . . 4 . . . 3 . Blast 5 | . . 1 1 . . 3 . Melee Attacks . | . . . . . . . . Impact . | . . . . . . . . Slashing . | . . . . . . . . Piercing . | . . . . . . . . Sneak Attacks . | . . . . . . . . Combat Hostiles . | . . . . . . . . Follow-up Attacks . | . . . . . . . . Damage Inflicted 7826 | 409 659 1977 424 . 654 3703 . Guns 5200 | 402 637 957 170 . 408 2626 . Cannons 1537 | . . 640 209 . 246 442 . Explosions 1000 | . . 380 . . . 620 . Melee . | . . . . . . . . Ramming 89 | 7 22 . 45 . . 15 . Kinetic 5542 | 124 218 897 266 . 654 3383 . Thermal 1748 | 278 419 818 113 . . 120 . Explosive . | . . . . . . . . Electromagnetic 447 | . . 262 . . . 185 . Impact . | . . . . . . . . Slashing . | . . . . . . . . Piercing . | . . . . . . . . Highest Corruption 6 | . . 6 6 6 . 1 . Average Corruption 5 | . . 6 6 5 . 1 . Corruption Purged . | . . . . . . . . Corruption Blocked . | . . . . . . . . Effects 325 | . . 163 61 86 . 15 . Message Errors 93 | . . 50 13 26 . 4 . Matter Fused 72 | . . 32 17 21 . 2 . Heat Flow Errors 39 | . . 21 7 10 . 1 . Energy Discharges 45 | . . 25 8 11 . 1 . Parts Rejected 1 | . . 1 . . . . . Parts Fused 1 | . . . . 1 . . . Data Loss (minor) 40 | . . 17 7 12 . 4 . Data Loss (major) 16 | . . 8 4 3 . 1 . Misfires 13 | . . 6 5 . . 2 . Alerts 5 | . . 3 . 2 . . . Overload Shots . | . . . . . . . . Overflow Damage 35 | . . . . . 33 2 . Projectiles 33 | . . . . . 33 . . Explosions 2 | . . . . . . 2 . Melee . | . . . . . . . . Knockbacks 9 | . . 6 1 . 2 . . Impact . | . . . . . . . . Kinetic 9 | . . 6 1 . 2 . . Secondary . | . . . . . . . . Self-Inflicted Damage 38 | . . 37 . . . 1 . Shots 2 | . . 2 . . . . . Rammed 16 | 2 3 . 9 . . 2 . Targets Rammed 16 | 2 3 . 9 . . 2 . Kicked . | . . . . . . . . Crushed . | . . . . . . . . Highest Temperature 499 | 100 154 261 411 264 54 499 . Average Temperature 90 | 39 46 90 132 96 15 117 . Received Heat Transfer 864 | . 90 309 72 . . 393 . Effects 8 | . . . 4 . . 4 . Shutdowns 2 | . . . . . . 2 . Energy Bleed 2 | . . . 1 . . 1 . Interference 2 | . . . 2 . . . . Damage (minor) 2 | . . . 1 . . 1 . Siege Activations . | . . . . . . . . Martial Activations . | . . . . . . . . Shielding Activations . | . . . . . . . . Robots Disrupted . | . . . . . . . . Combat Hostiles . | . . . . . . . . Robots Corrupted . | . . . . . . . . Combat Hostiles . | . . . . . . . . Parts Fried 3 | . . 1 . . . 2 . Impact Corruptions . | . . . . . . . . Robots Melted . | . . . . . . . . Combat Hostiles . | . . . . . . . . Parts Melted 7 | 2 2 1 . . . 2 . Heat Transferred 3467 | 962 1295 1011 149 . . 50 . Parts Sabotaged . | . . . . . . . . Parts Stolen . | . . . . . . . . Parts Stripped . | . . . . . . . . Power Chain Reactions 3 | . . 1 . . . 2 . Alert | -11 -10 -10 -9 -9 -6 -6 -6 ------- Run | Yrd Mat Sub Rec Scr Fac Ext Cet Maximum Alert Level 3 | . . . . . . 3 . Low Security (%) 91 | 100 100 . 100 . 100 72 . Level 1 5 | . . . . . . 17 . Level 2 3 | . . . . . . 9 . Level 3 . | . . . . . . . . Level 4 . | . . . . . . . . Level 5 . | . . . . . . . . High Security . | . . . . . . . . Max Security . | . . . . . . . . Peak Influence 764 | 25 142 . 122 . 92 764 . Initial 426 | . . . 122 . . 29 426 Average 59 | 2 20 . 18 . 12 151 . Influence Increases 2661 | 55 282 375 276 . 180 1493 . Destroy 0b10 Robot/C 1380 | . 180 240 80 . 100 780 . Destroy 0b10 Robot/NC 170 | 55 40 . 5 . 20 50 . Destroy Leader 208 | . 50 30 . . 22 106 . Allied During Kill 488 | . . . . . . 488 . Successful Hack 87 | . 12 . 36 . 4 35 . Select Force Hacks 120 | . . . 120 . . . . Disable Machine 30 | . . . 15 . 15 . . Destroy Structure 43 | . . . 5 . 4 34 . Lose Combat Pursuer 135 | . . 105 15 . 15 . . Influence Decreases 2235 | 55 282 120 531 . 119 792 336 Entered New Map 501 | . . . 133 . . 32 336 Time Decay 1396 | 55 272 110 398 . 99 462 . Lost Part 70 | . 10 10 . . 20 30 . Lost Ally 268 | . . . . . . 268 . Squads Dispatched 8 | . 1 . . . 2 5 . Investigation 4 | . . . . . 1 3 . Extermination 1 | . . . . . 1 . . Reinforcement 2 | . 1 . . . . 1 . Assault 1 | . . . . . . 1 . Garrison . | . . . . . . . . Intercept . | . . . . . . . . Searches Triggered . | . . . . . . . . Construction Impeded 1 | . . . . . . 1 . Haulers Reinforced . | . . . . . . . . Active Scanning Responses . | . . . . . . . . Cargo Convoy Interrupts . | . . . . . . . . Stealth | -11 -10 -10 -9 -9 -6 -6 -6 --------- Run | Yrd Mat Sub Rec Scr Fac Ext Cet Distress Signals 4 | . 1 . . . . 3 . Communications Jammed . | . . . . . . . . Distress Signals . | . . . . . . . . Times Spotted 104 | . 17 35 5 . 8 39 . Peak Tracking Total 5 | . 4 3 2 . 4 5 . Tactical Retreats 7 | . . 5 1 . 1 . . Traps | -11 -10 -10 -9 -9 -6 -6 -6 ------- Run | Yrd Mat Sub Rec Scr Fac Ext Cet Traps Triggered 4 | . . . . 1 1 2 . Indirectly . | . . . . . . . . Trap Hack Attempts . | . . . . . . . . Triggered . | . . . . . . . . Disarmed . | . . . . . . . . Reprogrammed . | . . . . . . . . Reused . | . . . . . . . . Traps Extracted . | . . . . . . . . Installed 1 | . . . . 1 . . . Triggered . | . . . . . . . . Most Traps Carried 1 | . . 1 1 1 . . . Machines | -11 -10 -10 -9 -9 -6 -6 -6 ---------- Run | Yrd Mat Sub Rec Scr Fac Ext Cet Machines Disabled 7 | . . 4 1 . 1 1 . Max in Single Turn 2 | . . 2 1 . 1 1 . Machines Repaired . | . . . . . . . . Machines Dismantled . | . . . . . . . . Machines Sabotaged . | . . . . . . . . Overloaded Fab Kills . | . . . . . . . . Hacking | -11 -10 -10 -9 -9 -6 -6 -6 --------- Run | Yrd Mat Sub Rec Scr Fac Ext Cet Machines Accessed 40 | . 10 2 10 2 4 12 . Terminals 25 | . 7 . 6 . 3 9 . Fabricators 1 | . . . . . 1 . . Repair Stations 2 | . 1 . . . . 1 . Recycling Units 8 | . 2 . 4 . . 2 . Scanalyzers . | . . . . . . . . Garrison Access . | . . . . . . . . Total Hacks 92 | . 28 4 25 5 7 23 . Successful 46 | . 12 4 13 5 4 8 . Failed 46 | . 16 . 12 . 3 15 . Catastrophic 11 | . 1 . 2 . 2 6 . Database Lockouts . | . . . . . . . . Manual 51 | . 22 . 19 . 1 9 . Terminals 60 | . 21 . 17 . 5 17 . Fabricators 2 | . . . . . 2 . . Repair Stations 5 | . 3 . . . . 2 . Recycling Units 16 | . 4 . 8 . . 4 . Scanalyzers . | . . . . . . . . Garrison Access . | . . . . . . . . Terminal Hacks 21 | . 3 4 2 5 2 5 . Record 7 | . . 3 . 4 . . . Part Schematic 2 | . . . 1 . . 1 . Robot Analysis 4 | . 3 . 1 . . . . Open Door 4 | . . . . . 1 3 . Alert Level 1 | . . . . . . 1 . Recall Investigation 1 | . . . . . 1 . . Proto ID Catalog 2 | . . 1 . 1 . . . Fabricator Hacks 2 | . . . . . 2 . . Load Schematic 1 | . . . . . 1 . . Build 1 | . . . . . 1 . . Repair Station Hacks 2 | . 2 . . . . . . Scan Component 1 | . 1 . . . . . . Repair 1 | . 1 . . . . . . Recycling Unit Hacks 3 | . 1 . 2 . . . . Retrieve Components 3 | . 1 . 2 . . . . Scanalyzer . | . . . . . . . . Garrison Access Hacks . | . . . . . . . . Unauthorized Hacks 18 | . 6 . 9 . . 3 . Terminals 12 | . 6 . 5 . . 1 . Botnet 3 | . 1 . 1 . . 1 . Skim 9 | . 5 . 4 . . . . Fabricators . | . . . . . . . . Repair Stations . | . . . . . . . . Recycling Units 6 | . . . 4 . . 2 . Tunnel 4 | . . . 4 . . . . Scrapoids 2 | . . . . . . 2 . Scanalyzers . | . . . . . . . . Garrison Access . | . . . . . . . . Data Cores Recovered 1 | . . . . . . 1 . Used . | . . . . . . . . Hacking Detections 25 | . 10 . 4 . 2 9 . Full Trace Events 4 | . . . 4 . . . . Feedback Events . | . . . . . . . . Feedback Blocked . | . . . . . . . . Robot Schematics Acquired . | . . . . . . . . Robots Built . | . . . . . . . . Authchips . | . . . . . . . . Time . | . . . . . . . . Total Robot Build Rating . | . . . . . . . . Part Schematics Acquired 3 | . . . 1 1 . 1 . Parts Built 1 | . . . . . 1 . . Authchips 1 | . . . . . 1 . . Time 25 | . . . . . 25 . . Total Part Build Rating 1 | . . . . . 1 . . Parts Repaired 1 | . 1 . . . . . . Time 26 | . 26 . . . . . . Parts Recycled . | . . . . . . . . Recycled Matter . | . . . . . . . . Retrieved Matter . | . . . . . . . . Retrieved Components 7 | . 4 . 3 . . . . Parts Scanalyzed . | . . . . . . . . Part Schematics Acquired . | . . . . . . . . Parts Damaged . | . . . . . . . . Bothacking | -11 -10 -10 -9 -9 -6 -6 -6 ------------ Run | Yrd Mat Sub Rec Scr Fac Ext Cet Used RIF Installer . | . . . . . . . . Robots Hacked . | . . . . . . . . Non-combat . | . . . . . . . . Combat . | . . . . . . . . Robot Hacks Applied . | . . . . . . . . Relay Couplers Released . | . . . . . . . . Fabnet Peak Effective % . | . . . . . . . . Robots Rewired 10 | . . . . . . 10 . Allies Hacked . | . . . . . . . . Hacks Repelled . | . . . . . . . . Allies | -11 -10 -10 -9 -9 -6 -6 -6 -------- Run | Yrd Mat Sub Rec Scr Fac Ext Cet Total Allies 26 | . . . . . . 26 . Largest Group 13 | . . . . . . 13 . Highest-Rated Group 371 | . . . . . . 371 . Highest-Rated Ally 39 | . . . . . . 39 . Total Orders 3 | . . . . . . 3 . STAY 2 | . . . . . . 2 . FOLLOW 1 | . . . . . . 1 . Ally Attacks 223 | . . . . . . 223 . Total Damage 3507 | . . . . . . 3507 . Kills 20 | . . . . . . 20 . Allies Corrupted . | . . . . . . . . Allies Melted . | . . . . . . . . Intel | -11 -10 -10 -9 -9 -6 -6 -6 ------- Run | Yrd Mat Sub Rec Scr Fac Ext Cet Active Infowar (turns) 3253 | 185 206 172 . . 533 2157 . Optics 172 | . . 172 . . . . . Sensors 1033 | . . . . . 533 500 . IFF 1659 | . . . . . . 1659 . Seismic 391 | 185 206 . . . . . . Robot Analysis Total 4 | . 3 . 1 . . . . Derelict Logs Recovered 6 | . . 1 . 5 . . . Drone Launches . | . . . . . . . . Drone Recoveries . | . . . . . . . . Exploration | -11 -10 -10 -9 -9 -6 -6 -6 ------------- Run | Yrd Mat Sub Rec Scr Fac Ext Cet Turns Passed 20321 | 408 1522 7530 2251 5617 730 2263 . Spaces Moved 9271 | 153 706 3702 883 2312 360 1155 . Core 7 | 7 . . . . . . . Treads 8484 | 146 706 3352 883 2312 360 725 . Legs . | . . . . . . . . Wheels 780 | . . 350 . . . 430 . Hover . | . . . . . . . . Flight . | . . . . . . . . Fastest Speed 50 | 50 160 100 240 240 156 150 . Average Speed 198 | 154 181 182 240 240 156 161 . Slowest Speed 320 | 160 240 240 240 240 156 320 . Overloaded Moves . | . . . . . . . . Propulsion Burnouts . | . . . . . . . . Robots Hopped . | . . . . . . . . Potential Cave-ins . | . . . . . . . . Cave-ins Triggered . | . . . . . . . . Exploration Rate (%) 61 | 7 98 97 99 91 8 86 5 Regions Visited 7 Branch Regions 5 Pre-discovered Areas 5 | . . . 4 1 . . . Known Exits Taken 2 | . . . 1 . 1 . . Unknown Exits Taken 5 | 1 1 1 . 1 . 1 . Scrap Searched 14 | . . 11 . 3 . . . Spaces Dug 2 | . . 1 . . 1 . . Terrain Destroyed 65 | . . 39 5 . 2 19 . Melee . | . . . . . . . . Projectile 20 | . . 2 5 . 2 11 . AOE 45 | . . 37 . . . 8 . Terrain Rammed . | . . . . . . . . Walls Destroyed . | . . . . . . . . Machines Disabled . | . . . . . . . . Actions | -11 -10 -10 -9 -9 -6 -6 -6 --------- Run | Yrd Mat Sub Rec Scr Fac Ext Cet Total 10668 | 269 848 4257 979 2385 476 1454 . Wait 685 | 77 64 330 56 39 64 55 . Move 9264 | 152 705 3701 882 2311 359 1154 . Hop . | . . . . . . . . Pick Up 82 | 3 14 35 4 12 7 7 . Fast Attach 30 | 7 3 3 . 3 6 8 . Attach 13 | . . 4 . 3 5 1 . Detach . | . . . . . . . . Swap 56 | . 2 14 4 3 4 29 . Drop 72 | . 4 20 10 13 . 25 . Fire 327 | 28 53 130 14 . 31 71 . Melee . | . . . . . . . . Ram 1 | . . . . . . 1 . Kick . | . . . . . . . . Crush 15 | 2 3 . 9 . . 1 . Escape Stasis . | . . . . . . . . Rewire 102 | . . . . . . 102 . Trap 1 | . . . . 1 . . . Miscellaneous 20 | . . 20 . . . . . Route ------- -11/Scrapyard -10/Materials (discovered 6 exits: [*Mat x3] / *Min x2 / *Sub) -10/Subcaves (discovered 3 exits: [*Mat x2] / *Rec) -9/Recycling (discovered 2 exits: [*Fac] / *Scr) -9/Scraptown (discovered 2 exits: *Fac x2) -6/Factory (discovered 2 exits: Low / *Ext) -6/Extension (discovered 2 exits: [*Fac] / [*Cet]) -6/Cetus History --------- Turn | Location | Event 14 | -11/Scrapyard | Discovered new exit (range 15) 409 | -11/Scrapyard | Entered Materials 410 | -10/Materials | Build established: Mutant 596 | -10/Materials | Discovered new exit (range 16) 842 | -10/Materials | Discovered new exit (range 12) 953 | -10/Materials | Discovered new exit (range 16) 1055 | -10/Materials | Discovered new exit (range 11) 1375 | -10/Materials | Repaired Lgt. Treads 1474 | -10/Materials | Discovered new exit (range 5) 1631 | -10/Materials | Learned 2 Storage zone layouts 1674 | -10/Materials | Discovered new exit (range 16) 1777 | -10/Materials | Identified exit to Mines 1834 | -10/Materials | Learned location of 1 exit from Recycling 1879 | -10/Materials | Learned 2 Storage zone layouts 1914 | -10/Materials | Learned Storage security intel 1931 | -10/Materials | Entered Subcaves 1932 | -10/Subcaves | Approached by a straggling Scientist 2225 | -10/Subcaves | Shifting Twisted Machinery released Sub. Monowheel 2230 | -10/Subcaves | Shifting Twisted Machinery released Sub. Monowheel 3074 | -10/Subcaves | Visited Clippyterm 3081 | -10/Subcaves | Learned Factory stockpile data 3513 | -10/Subcaves | Discovered new exit (range 10) 3628 | -10/Subcaves | Visited 4L-MR0's lab 3645 | -10/Subcaves | Found Gun Armor 4286 | -10/Subcaves | Shifting Twisted Machinery released Shrapnel Trap 4287 | -10/Subcaves | Shifting Twisted Machinery released Battle Cannon 4321 | -10/Subcaves | Build established: Subdweller-Mutant 4760 | -10/Subcaves | Build established: Mutant 5047 | -10/Subcaves | A swath of the cavern ceiling suddenly collapsed 5119 | -10/Subcaves | Shifting Twisted Machinery released Sub. Laser 5222 | -10/Subcaves | A swath of the cavern ceiling suddenly collapsed 5691 | -10/Subcaves | A Subdweller sparked back to life 5691 | -10/Subcaves | A Subdweller sparked back to life 6834 | -10/Subcaves | Disturbed a concealed Subdweller 7009 | -10/Subcaves | Discovered new exit (range 16) 7381 | -10/Subcaves | Discovered new exit (range 5) 9461 | -10/Subcaves | Entered Recycling 9462 | -9/Recycling | Identified exit to Scraptown 9816 | -9/Recycling | Build established: Scavenger-Mutant 10047 | -9/Recycling | Core integrity fell below 50% 10756 | -9/Recycling | Discovered new exit (range 5) 11652 | -9/Recycling | Scanned before Scraplab entrance 11688 | -9/Recycling | Entered Scraplab 11712 | -9/Recycling | Entered Scraptown 11937 | -9/Scraptown | Build established: Mutant 11948 | -9/Scraptown | Visited UFD Registry 11948 | -9/Scraptown | Registered with UFD as "Cogrider" 12005 | -9/Scraptown | Visited Science Guys 12092 | -9/Scraptown | Visited Observation Area 12132 | -9/Scraptown | Visited Junk Repository 12188 | -9/Scraptown | Visited LU-1G1's Boring Crew 12219 | -9/Scraptown | Visited Scrap Suit Storage 12252 | -9/Scraptown | Visited Supply Room 12281 | -9/Scraptown | Visited A0-MCA Data Center 12300 | -9/Scraptown | Given a C- rating by A0-MCA 12303 | -9/Scraptown | Found A0-MCA's Component Scanner 12354 | -9/Scraptown | Visited Botcube Research 12426 | -9/Scraptown | Visited Curators Association 12469 | -9/Scraptown | Visited Abandonware Association 12496 | -9/Scraptown | Learned abandonware demo "REPAIR.EXE" 12647 | -9/Scraptown | Visited Cave Peace 12733 | -9/Scraptown | Visited Fellowship of the Rings 12793 | -9/Scraptown | Scanned Subdweller tech in exchange for log data 12798 | -9/Scraptown | Learned Research terminal intel 12801 | -9/Scraptown | Learned Research garrison access intel 12803 | -9/Scraptown | Learned location of Armory (-3) 12805 | -9/Scraptown | Learned Research trap positions 12844 | -9/Scraptown | Discovered new exit (range 11) 12892 | -9/Scraptown | Guru changed UFD alias to "Biomod" 13035 | -9/Scraptown | Visited Comm Corps 13167 | -9/Scraptown | Visited Symbiants 13318 | -9/Scraptown | Visited IN-MT5's Study 13402 | -9/Scraptown | Visited Shadow of the Wyrm 14565 | -9/Scraptown | Warned about trapping Scraptown 15028 | -9/Scraptown | System corruption cleaned by C-Scrubber 15222 | -9/Scraptown | Visited The Evicted 15978 | -9/Scraptown | Found Scrap Suit 16048 | -9/Scraptown | Found Botcube 16313 | -9/Scraptown | Discovered new exit (range 5) 17324 | -9/Scraptown | System corruption cleaned by C-Scrubber 17329 | -9/Scraptown | Entered Factory 17329 | -6/Factory | Evolved 8 slots: Power x1, Propulsion x2, Utility x4, Weapon x1 17330 | -6/Factory | Identified exit to Lower Caves 17830 | -6/Factory | Build established: Skirmisher 17842 | -6/Factory | Fabricated Huge Storage Unit (x1) 18039 | -6/Factory | Discovered new exit (range 10) 18050 | -6/Factory | Identified exit to Extension 18059 | -6/Factory | Entered Extension 18263 | -6/Extension | Build established: Scavenger-Gunner 18397 | -6/Extension | Rescued a captive Derelict 18397 | -6/Extension | Rescued a captive Derelict 18529 | -6/Extension | Rescued a captive Derelict 18530 | -6/Extension | Rescued a captive Derelict 18559 | -6/Extension | Scrapoid reinforcements arrived 18850 | -6/Extension | Build established: Commander-Gunner 19016 | -6/Extension | Rescued a captive Derelict 19016 | -6/Extension | Rescued a captive Derelict 19075 | -6/Extension | Lost 3 allies 19322 | -6/Extension | Spotted B-75 Beast 19332 | -6/Extension | Allies destroyed B-75 Beast 19338 | -6/Extension | Found Scrap Suit 19357 | -6/Extension | Spotted B-75 Beast 19373 | -6/Extension | Allies destroyed B-75 Beast 19404 | -6/Extension | Lost 4 allies 19625 | -6/Extension | Build established: Scavenger-Scrapper 19834 | -6/Extension | Disrupted transfer network 20058 | -6/Extension | Scrapoids reinforcements arrived? 20159 | -6/Extension | First assault squad dispatched 20220 | -6/Extension | Build established: Commander-Scrapper 20266 | -6/Extension | Discovered new exit (range 10) 20268 | -6/Extension | Discovered new exit (range 6) 20322 | -6/Extension | Entered Cetus 20322 | -6/Cetus | Accompanied by 9 allies 20322 | -6/Cetus | Self-destructed Last Messages --------------- 20302_ System corrupted: Heat flow error (+201). 20303_ HV Slug penetrates Wall. 20305_ S-27 Virus destroyed. 20306_ Destroyed VTOL Module. 20306_ Chain reaction triggered in Corrupted Unknown Power Core. 20306_ S-27 Virus destroyed. 20306_ S-27 Virus suffers critical hit (Burn). 20307_ R-10 Processor exits Transfer Station. 20307_ S-27 Virus IFF system glitched. 20307_ S-27 Virus destroyed. 20312_ R-10 Processor exits Transfer Station. 20316_ K-01 Serf exits Transfer Station. 20319_ T-07 Excavator exits Transfer Station. 20319_ U-05 Engineer exits Transfer Station. LOCATION=UNKNOWN GOAL=ESCAPE [Achievement: I Was Wrong!] Map ----- +----------------------------------------------------+ | ???????????????????????????? | | ???????????????????????????? | | ???????????????????????????? | | ???????????????????????????? | | ???????????????????????????? | | ???????????????????????????? | | ???????????????????????????? | | ???????????????????????????? | | ???????????????????????????? | | ???????????????????????????? | | ???????????????????????????? | | ???????????????????????????? | | ???????????????????????????? | | ???????????????????????????? | | ???????????????????????????? | | ???????????????????????????? | | ???????????????????????????? | | ???????????????????????????? | | ???????????????????????????? | | ???????????????????????????? | | ???????????????????????????? | | ???????????????????????????? | | ???????????????????????????? | | ?###############???????????? | | ?# gs ????????? | | ?#b@s s s h ????????? | | ?# h g ????????? | | ?###############???????????? | | ???????????????????????????? | | ???????????????????????????? | | ???????????????????????????? | | ???????????????????????????? | | ???????????????????????????? | | ???????????????????????????? | | ???????????????????????????? | | ???????????????????????????? | | ???????????????????????????? | | ???????????????????????????? | | ???????????????????????????? | | ???????????????????????????? | | ???????????????????????????? | | ???????????????????????????? | | ???????????????????????????? | | ???????????????????????????? | | ???????????????????????????? | | ???????????????????????????? | | ???????????????????????????? | | ???????????????????????????? | | ???????????????????????????? | | ???????????????????????????? | +----------------------------------------------------+ Best States ------------- Heat Dissipation 37 Energy Generation 34 Energy Capacity 370 Matter Stores 300 Matter Capacity 300 Sight Range 21 Robot Scan Range 15 Terrain Scan Density 10 Armor Coverage 800 Resistance: TH 10 Evasion (%) 40 Targeting Accuracy 8 Core Analysis 6 Recoil Reduction 4 Authchip Count 1 Item Schematics ----------------- Huge Storage Unit | -9/Recycling | Hacked IN-MT5's Pitchfork "Insurrection" | -9/Scraptown | Archive Quantum Capacitor | -6/Extension | Hacked Robot Schematics ------------------ None Fabricated ------------ Huge Storage Unit | x1 | -6/Factory | Authchip Repaired ---------- Lgt. Treads | 52% | -10/Materials Alien Tech Used ----------------- None Achievements -------------- I Was Wrong! Challenges ------------ None Game ------ Seed PitchforkFlakAmplifier Manual? 0 Play Time 01:11:36 Cumulative 201.0 hours Start 2025.09.13 @ 15:40:27 End 2025.09.13 @ 22:32:10 Sessions 4 Manual Loads 0 Difficulty Rogue Special Mode None Game No. 110 Rogue 110 Adventurer 0 Explorer 0 Win Type - Total 23 Types 10/1/8/1/0/1/1/1/0/0 Lore% 75 Gallery% 66 Achievement% 72 Wizard Run 0 Options --------- Layout 1 ASCII 0 Keyboard 0 Movement Arrows Keybinds 0 Fullscreen 2 Font 24/Tamsyn Map View 50x35 Zoom Use 0% Tactical HUD 1 Map Filters NONE Filters NONE Steam 1 RUN: e56cec1b-dd65-40fa-a76d-e1c8f99a0c84